lending/lending_fUSD_20260328
["ID","MTS","AMOUNT","RATE_DAILY","PERIOD"]
[418976387,1774703390600,-151.0,0.00044932,120]
[418976388,1774703390629,-151.0,0.00044932,120]
[418976389,1774703390656,-151.0,0.00044932,120]
[418976390,1774703390685,-151.0,0.00044932,120]
[418976391,1774703390713,-188.190063,0.00044932,120]
[418976392,1774703390742,-186.458668,0.00044932,120]
[418976393,1774703390771,-151.0,0.00044932,120]
[418976394,1774703390799,-251.120935,0.00044932,120]
[418976395,1774703390828,-151.0,0.00044932,120]
[418976396,1774703390857,-151.0,0.00044932,120]
[418976397,1774703390885,-294.871682,0.00044932,120]
[418976398,1774703390914,-160.623372,0.00044932,120]
[418976399,1774703390944,-258.863405,0.00044932,60]
[418976400,1774703390976,-205.290216,0.00044932,120]
[418976401,1774703391003,-179.519701,0.00044932,60]
[418976402,1774703391031,-179.519701,0.00044932,60]
[418976403,1774703391058,-179.519701,0.00044932,60]
[418976404,1774703391086,-179.519701,0.00044932,60]
[418976405,1774703391113,-179.519701,0.00044932,60]
[418976406,1774703391252,-179.519701,0.00044932,60]
[418976407,1774703391283,-179.519701,0.00044932,60]
[418976408,1774703391312,-151.000027,0.00044932,120]
[418976409,1774703391341,-179.519701,0.00044932,60]
[418976410,1774703391372,-151.0,0.00044932,120]
[418976411,1774703391400,-179.519701,0.00044932,60]
[418976412,1774703391428,-211.044947,0.00044932,120]
[418976413,1774703391457,-179.519701,0.00044932,60]
[418976414,1774703391485,-179.519701,0.00044932,60]
[418976415,1774703391515,-179.519701,0.00044932,60]
[418976416,1774703391544,-179.519701,0.00044932,60]
[418976417,1774703391573,-179.519701,0.00044932,60]
[418976418,1774703391602,-179.519701,0.00044932,60]
[418976419,1774703391631,-179.519701,0.00044932,60]
[418976420,1774703391661,-179.519701,0.00044932,60]
[418976421,1774703391690,-179.519701,0.00044932,60]
[418976422,1774703391718,-179.519701,0.00044932,60]
[418976423,1774703391747,-179.519693,0.00044932,60]
[418976424,1774703391776,-166.657834,0.00044932,120]
[418976425,1774703391805,-151.000029,0.00044932,120]
[418976426,1774703391834,-151.0,0.00044932,60]
[418976427,1774703391862,-151.0,0.00044932,60]
[418976428,1774703391891,-151.0,0.00044932,60]
[418976429,1774703391920,-151.0,0.00044932,60]
[418976430,1774703391949,-151.0,0.00044932,60]
[418976431,1774703391977,-151.0,0.00044932,60]
[418976432,1774703392006,-156.480608,0.00044932,60]
[418976433,1774703392035,-241.821294,0.00044932,120]
[418976434,1774703392064,-190.370021,0.00044932,60]
[418976435,1774703392092,-190.370021,0.00044932,60]
[418976436,1774703392120,-190.370021,0.00044932,60]
[418976437,1774703392153,-190.370021,0.00044932,60]
[418976438,1774703392181,-190.370021,0.00044932,60]
[418976439,1774703392209,-190.370021,0.00044932,60]
[418976440,1774703392238,-190.370021,0.00044932,60]
[418976441,1774703392267,-190.370021,0.00044932,60]
[418976442,1774703392296,-190.370021,0.00044932,60]
[418976443,1774703392325,-190.370021,0.00044932,60]
[418976444,1774703392355,-190.370021,0.00044932,60]
[418976445,1774703392400,-190.370021,0.00044932,60]
[418976446,1774703392442,-190.370021,0.00044932,60]
[418976447,1774703392483,-190.370021,0.00044932,60]
[418976448,1774703392525,-190.370021,0.00044932,60]
[418976449,1774703392563,-190.370021,0.00044932,60]
[418976450,1774703392598,-190.370021,0.00044932,60]
[418976451,1774703392639,-190.370021,0.00044932,60]
[418976452,1774703392683,-190.370021,0.00044932,60]
[418976453,1774703392716,-190.37002,0.00044932,60]
[418976454,1774703392756,-151.0,0.00044932,120]
[418976455,1774703392797,-151.0,0.00044932,120]
[418976456,1774703392837,-151.0,0.00044932,120]
[418976457,1774703392874,-151.0,0.00044932,120]
[418976458,1774703392910,-151.0,0.00044932,120]
[418976459,1774703392945,-151.0,0.00044932,120]
[418976460,1774703392981,-151.0,0.00044932,120]
[418976461,1774703393018,-151.0,0.00044932,120]
[418976462,1774703393054,-151.0,0.00044932,120]
[418976463,1774703393096,-151.0,0.00044932,120]
[418976464,1774703393133,-151.0,0.00044932,120]
[418976465,1774703393170,-151.0,0.00044932,120]
[418976466,1774703393210,-156.138434,0.00044932,120]
[418976467,1774703393247,-268.986032,0.00044932,120]
[418976468,1774703393285,-279.556744,0.00044932,120]
[418976469,1774703393321,-153.824293,0.00044932,120]
[418976470,1774703393359,-151.0,0.00044932,120]
[418976471,1774703393396,-219.925709,0.00044932,120]
[418976472,1774703393435,-154.713468,0.00044932,120]
[418976473,1774703393472,-151.0,0.00044932,120]
[418976474,1774703393509,-151.0,0.00044932,120]
[418976475,1774703393546,-200.753161,0.00044932,120]
[418976476,1774703393583,-151.0,0.00044932,120]
[418976477,1774703393621,-151.0,0.00044932,120]
[418976478,1774703393657,-259.014279,0.00044932,120]
[418976479,1774703393695,-151.0,0.00044932,120]
[418976480,1774703393731,-151.0,0.00044932,120]
[418976481,1774703393772,-151.0,0.00044932,120]
[418976482,1774703393809,-151.0,0.00044932,120]
[418976483,1774703394006,-165.922585,0.00044932,120]
[418976484,1774703394047,-457.309779,0.00044932,110]
[418976485,1774703394075,-457.309779,0.00044932,110]
[418976486,1774703394104,-457.309779,0.00044932,110]
[418976487,1774703394132,-457.309779,0.00044932,110]
[418976488,1774703394159,-457.309779,0.00044932,110]
[418976489,1774703394189,-457.309779,0.00044932,110]
[418976490,1774703394217,-457.309779,0.00044932,110]
[418976491,1774703394246,-457.309779,0.00044932,110]
[418976492,1774703394275,-457.309779,0.00044932,110]
[418976493,1774703394303,-457.309779,0.00044932,110]
[418976494,1774703394331,-457.309779,0.00044932,110]
[418976495,1774703394360,-457.309779,0.00044932,110]
[418976496,1774703394389,-457.309779,0.00044932,110]
[418976497,1774703394418,-457.309779,0.00044932,110]
[418976498,1774703394446,-457.309779,0.00044932,110]
[418976499,1774703394475,-457.309779,0.00044932,110]
[418976500,1774703394504,-457.309779,0.00044932,110]
[418976501,1774703394535,-457.309779,0.00044932,110]
[418976502,1774703394565,-457.309779,0.00044932,110]
[418976503,1774703394595,-457.309776,0.00044932,110]
[418976504,1774703394623,-166.231367,0.00044932,120]
[418976505,1774703394653,-256.432985,0.00044932,120]
[418976506,1774703394682,-151.0,0.00044932,120]
[418976507,1774703394712,-151.0,0.00044932,120]
[418976508,1774703394740,-179.302359,0.00044932,120]
[418976509,1774703394770,-151.0,0.00044932,120]
[418976510,1774703394801,-151.0,0.00044932,120]
[418976511,1774703394830,-151.0,0.00044932,120]
[418976512,1774703394859,-151.000027,0.00044932,120]
[418976513,1774703394887,-204.793515,0.00044932,30]
[418976514,1774703394916,-165.823966,0.00044932,120]
[418976515,1774703394947,-169.84492,0.00044932,120]
[418976516,1774703394978,-151.0,0.00044932,120]
[418976517,1774703395008,-250.994835,0.00044932,120]
[418976518,1774703395037,-151.0,0.00044932,120]
[418976519,1774703395066,-151.0,0.00044932,120]
[418976520,1774703395095,-151.0,0.00044932,120]
[418976521,1774703395123,-151.0,0.00044932,120]
[418976522,1774703395154,-151.0,0.00044932,120]
[418976523,1774703395183,-151.0,0.00044932,120]
[418976524,1774703395211,-151.0,0.00044932,120]
[418976525,1774703395242,-151.0,0.00044932,120]
[418976526,1774703395271,-151.0,0.00044932,120]
[418976527,1774703395303,-151.0,0.00044932,120]
[418976528,1774703395331,-231.17582,0.00044932,120]
[418976529,1774703395362,-151.0,0.00044932,120]
[418976530,1774703395392,-151.0,0.00044932,120]
[418976531,1774703395424,-151.0,0.00044932,120]
[418976532,1774703395454,-151.0,0.00044932,120]
[418976533,1774703395485,-151.0,0.00044932,120]
[418976534,1774703395515,-151.0,0.00044932,120]
[418976535,1774703395543,-183.201823,0.00044932,120]
[418976536,1774703395572,-151.0,0.00044932,120]
[418976537,1774703395602,-274.071041,0.00044932,120]
[418976538,1774703395631,-218.089563,0.00044932,120]
[418976539,1774703395662,-151.0,0.00044932,120]
[418976540,1774703395691,-228.808663,0.00044932,120]
[418976541,1774703395719,-151.0,0.00044932,120]
[418976542,1774703395748,-151.0,0.00044932,120]
[418976543,1774703395777,-151.0,0.00044932,120]
[418976544,1774703395806,-163.105542,0.00044932,120]
[418976545,1774703395836,-151.0,0.00044932,120]
[418976546,1774703395866,-222.974242,0.00044932,120]
[418976547,1774703395894,-1131.30833,0.00044932,120]
[418976548,1774703395923,-1131.30833,0.00044932,120]
[418976549,1774703395952,-1131.30833,0.00044932,120]
[418976550,1774703395983,-1131.30833,0.00044932,120]
[418976551,1774703396012,-1131.30833,0.00044932,120]
[418976552,1774703396041,-1131.30833,0.00044932,120]
[418976553,1774703396070,-1131.30833,0.00044932,120]
[418976554,1774703396099,-1131.30833,0.00044932,120]
[418976555,1774703396127,-1131.30833,0.00044932,120]
[418976556,1774703396157,-1131.30833,0.00044932,120]
[418976557,1774703396186,-1131.30833,0.00044932,120]
[418976558,1774703396215,-1131.30833,0.00044932,120]
[418976559,1774703396244,-1131.30833,0.00044932,120]
[418976560,1774703396274,-1131.30833,0.00044932,120]
[418976561,1774703396303,-1131.30833,0.00044932,120]
[418976562,1774703396335,-1131.30833,0.00044932,120]
[418976563,1774703396366,-1131.30833,0.00044932,120]
[418976564,1774703396397,-1131.30833,0.00044932,120]
[418976565,1774703396427,-1131.30833,0.00044932,120]
[418976566,1774703396458,-1131.308321,0.00044932,120]
[418976567,1774703396487,-158.365254,0.00044932,120]
[418976568,1774703396517,-294.097238,0.00044932,120]
[418976569,1774703396548,-151.000016,0.00044932,120]
[418976570,1774703396580,-263.702629,0.00044932,120]
[418976571,1774703396612,-151.0,0.00044932,120]
[418976572,1774703396645,-151.0,0.00044932,120]
[418976573,1774703396678,-151.0,0.00044932,120]
[418976574,1774703396710,-254.793417,0.00044932,120]
[418976575,1774703396740,-156.950926,0.00044932,120]
[418976576,1774703396771,-201.634177,0.00044932,120]
[418976577,1774703396965,-201.634177,0.00044932,120]
[418976578,1774703396999,-201.634177,0.00044932,120]
[418976579,1774703397032,-201.634177,0.00044932,120]
[418976580,1774703397065,-201.634177,0.00044932,120]
[418976581,1774703397095,-201.634177,0.00044932,120]
[418976582,1774703397127,-201.634177,0.00044932,120]
[418976583,1774703397158,-201.634177,0.00044932,120]
[418976584,1774703397190,-201.634177,0.00044932,120]
[418976585,1774703397222,-201.634177,0.00044932,120]
[418976586,1774703397253,-201.634177,0.00044932,120]
[418976587,1774703397282,-268.479202,0.00044932,120]
[418976588,1774703397315,-201.634177,0.00044932,120]
[418976589,1774703397346,-201.634177,0.00044932,120]
[418976590,1774703397377,-201.634177,0.00044932,120]
[418976591,1774703397407,-201.634177,0.00044932,120]
[418976592,1774703397439,-201.634177,0.00044932,120]
[418976593,1774703397471,-201.634177,0.00044932,120]
[418976594,1774703397503,-201.634177,0.00044932,120]
[418976595,1774703397536,-201.634177,0.00044932,120]
[418976596,1774703397571,-201.634169,0.00044932,120]
[418976597,1774703397605,-151.084544,0.00044932,120]
[418976598,1774703397636,-244.077108,0.00044932,120]
[418976599,1774703397667,-214.096122,0.00044932,120]
[418976600,1774703397697,-151.000021,0.00044932,120]
[418976601,1774703397727,-216.864937,0.00044932,120]
[418976602,1774703397758,-151.0,0.00044932,120]
[418976603,1774703397789,-151.0,0.00044932,120]
[418976604,1774703397821,-299.214366,0.00044932,120]
[418976605,1774703397850,-151.0,0.00044932,120]
[418976606,1774703397880,-151.0,0.00044932,120]
[418976607,1774703397910,-151.0,0.00044932,120]
[418976608,1774703397940,-151.0,0.00044932,120]
[418976609,1774703397970,-244.0586,0.00044932,120]
[418976610,1774703398000,-150.0,0.00044938,30]
[418976611,1774703398031,-223.02634997,0.00044938,30]
[418976612,1774703398063,-1095.3,0.00044944,120]
[418976613,1774703398094,-205.96,0.00044945,120]
[418976614,1774703398127,-191.69,0.00044955,120]
[418976615,1774703398158,-206.0,0.0004496,30]
[418976616,1774703398188,-7997.0,0.0004497,120]
[418976617,1774703398218,-7997.0,0.0004497,120]
[418976618,1774703398250,-150.0,0.00044979,30]
[418976619,1774703398284,-150.0,0.00044979,30]
[418976620,1774703398315,-7997.0,0.0004498,120]
[418976621,1774703398346,-7997.0,0.0004498,120]
[418976622,1774703398378,-7997.0,0.0004498,120]
[418976623,1774703398409,-7999.09,0.0004498,120]
[418976624,1774703398441,-10000.0,0.00044985,120]
[418976625,1774703398472,-150.0,0.00044986,30]
[418976626,1774703398504,-223.02634997,0.00044986,30]
[418976627,1774703398533,-7997.0,0.0004499,120]
[418976628,1774703398565,-7997.0,0.0004499,120]
[418976629,1774703398596,-7997.0,0.0004499,120]
[418976630,1774703398627,-7997.0,0.0004499,120]
[418976631,1774703398659,-150.0,0.00044994,30]
[418976632,1774703398694,-50000.0,0.00045,45]
[418976633,1774703398725,-14071.9775698,0.00045,30]
[418976634,1774703398756,-150.0,0.00045,120]
[418976635,1774703398785,-150.0,0.00045,120]
[418976636,1774703398816,-150.0,0.00045,120]
[418976637,1774703398847,-150.0,0.00045,120]
[418976638,1774703398877,-150.0,0.00045,120]
[418976639,1774703398907,-150.0,0.00045,120]
[418976640,1774703398939,-150.0,0.00045,120]
[418976641,1774703398970,-150.0,0.00045,120]
[418976642,1774703399002,-150.0,0.00045,120]
[418976643,1774703399034,-150.0,0.00045,120]
[418976644,1774703399063,-150.0,0.00045,120]
[418976645,1774703399092,-150.0,0.00045,120]
[418976646,1774703399120,-150.0,0.00045,120]
[418976647,1774703399154,-150.0,0.00045,120]
[418976648,1774703399184,-150.0,0.00045,120]
[418976649,1774703399214,-150.0,0.00045,120]
[418976650,1774703399243,-150.0,0.00045,120]
[418976651,1774703399273,-150.0,0.00045,120]
[418976652,1774703399303,-150.0,0.00045,120]
[418976653,1774703399335,-150.0,0.00045,120]
[418976654,1774703399365,-150.0,0.00045,120]
[418976655,1774703399394,-150.0,0.00045,120]
[418976656,1774703399424,-150.0,0.00045,120]
[418976657,1774703399453,-150.0,0.00045,120]
[418976658,1774703399483,-150.0,0.00045,120]
[418976659,1774703399512,-158.641929,0.00045,120]
[418976660,1774703399542,-73626.68236341,0.00045,120]
[418976661,1774703399572,-90000.0,0.00045,30]
[418976662,1774703399602,-4498.999999,0.00045,30]
[418976663,1774703399633,-361.66556611,0.00045,45]
[418976664,1774703399663,-500.0,0.00045,120]
[418976665,1774703399693,-11939.31256302,0.00045,120]
[418976666,1774703399722,-23193.34514539,0.00045,30]
[418976667,1774703399871,-11000.0,0.00045,30]
[418976668,1774703399905,-7808.0,0.00045,120]
[418976669,1774703399934,-303.25246648,0.00045,120]
[418976670,1774703399963,-515.29318203,0.00045,120]
[418976671,1774703399992,-223.15902821,0.00045,30]
[418976672,1774703400022,-165.77417662,0.00045,30]
[418976673,1774703400053,-175.98696359,0.00045,30]
[418976674,1774703400085,-252.27961004,0.00045,120]
[418976675,1774703400115,-207.83277132,0.00045,30]
[418976676,1774703400146,-526.54192029,0.00045,120]
[418976677,1774703400177,-928.3977397,0.00045,120]
[418976678,1774703400207,-1314.31082076,0.00045,120]
[418976679,1774703400237,-6278.86,0.00045,30]
[418976680,1774703400267,-300000.0,0.00045,30]
[418976681,1774703400297,-3000.0,0.00045,120]
[418976682,1774703400328,-3378.48,0.00045,120]
[418976683,1774703400359,-2815.4,0.00045,120]
[418976684,1774703400391,-157.0,0.00045,30]
[418976685,1774703400422,-10000.0,0.00045,30]
[418976686,1774703400452,-119910.33386452,0.00045,120]
[418976687,1774703400485,-10000.0,0.00045,60]
[418976688,1774703400516,-302.54,0.00045,120]
[418976689,1774703400548,-659.39,0.00045,120]
[418976690,1774703400581,-185823.0,0.00045,60]
[418976691,1774703400613,-382.97,0.00045,120]
[418976692,1774703400644,-19955.94,0.00045,120]
[418976693,1774703400675,-9302.59,0.00045,120]
[418976694,1774703400707,-8826.89,0.00045,120]
[418976695,1774703400739,-428.54,0.00045,120]
[418976696,1774703400770,-456.42843448,0.00045,120]
[418976697,1774703400800,-161.43555277,0.00045,120]
[418976698,1774703400831,-503.0,0.00045002,120]
[418976699,1774703400862,-500.0,0.00045002,120]
[418976700,1774703400892,-150.0,0.00045024,30]
[418976701,1774703400923,-150.0,0.00045026,30]
[418976702,1774703400953,-223.02634997,0.00045033,30]
[418976703,1774703400985,-150.0,0.00045038,30]
[418976704,1774703401017,-150.0,0.00045042,30]
[418976705,1774703401048,-150.0,0.00045042,30]
[418976706,1774703401080,-191.69,0.00045055,120]
[418976707,1774703401111,-150.0,0.00045071,30]
[418976708,1774703401142,-158.87,0.00045072,120]
[418976709,1774703401171,-223.02634997,0.00045081,30]
[418976710,1774703401201,-150.0,0.0004509,30]
[418976711,1774703401231,-150.0,0.00045106,30]
[418976712,1774703401261,-150.0,0.00045106,30]
[418976713,1774703401292,-150.0,0.00045109,30]
[418976714,1774703401324,-150.0,0.00045123,120]
[418976715,1774703401354,-223.02634997,0.00045128,30]
[418976716,1774703401384,-1488.45,0.00045133,30]
[418976717,1774703401419,-3946.39,0.00045137,30]
[418976718,1774703401451,-3946.39,0.00045137,30]
[418976719,1774703401484,-150.0,0.00045144,120]
[418976720,1774703401515,-151.0,0.00045144,60]
[418976721,1774703401546,-150.0,0.00045147,30]
[418976722,1774703401580,-152.9151165,0.00045147,107]
[418976723,1774703401610,-150.0,0.00045149,30]
[418976724,1774703401644,-191.69,0.00045155,120]
[418976725,1774703401675,-150.0,0.00045169,30]
[418976726,1774703401707,-150.0,0.00045169,30]
[418976727,1774703401740,-223.02634997,0.00045176,30]
[418976728,1774703401773,-150.0,0.00045195,30]
[418976729,1774703401804,-150.0,0.00045195,30]
[418976730,1774703401835,-150.0,0.00045195,30]
[418976731,1774703401866,-150.0,0.00045195,30]
[418976732,1774703401898,-100000.0,0.00045205,120]
[418976733,1774703401929,-100000.0,0.00045205,120]
[418976734,1774703401961,-100000.0,0.00045205,120]
[418976735,1774703401992,-100000.0,0.00045205,120]
[418976736,1774703402023,-100000.0,0.00045205,120]
[418976737,1774703402056,-100000.0,0.00045205,120]
[418976738,1774703402087,-100000.0,0.00045205,120]
[418976739,1774703402117,-100000.0,0.00045205,120]
[418976740,1774703402146,-100000.0,0.00045205,120]
[418976741,1774703402176,-100000.0,0.00045205,120]
[418976742,1774703402204,-1318.11536791,0.00045205,120]
[418976743,1774703402233,-205.96,0.00045219,120]
[418976744,1774703402265,-223.02634997,0.00045223,30]
[418976745,1774703402296,-150.0,0.00045226,30]
[418976746,1774703402327,-150.0,0.00045233,30]
[418976747,1774703402358,-150.0,0.00045233,30]
[418976748,1774703402396,-191.69,0.00045255,120]
[418976749,1774703402427,-1095.3,0.00045261,120]
[418976750,1774703402459,-150.0,0.00045267,30]
[418976751,1774703402491,-223.02634997,0.00045271,30]
[418976752,1774703402524,-150.0,0.0004528,30]
[418976753,1774703402554,-150.0,0.00045297,30]
[418976754,1774703402584,-150.0,0.00045297,30]
[418976755,1774703402728,-150.0,0.00045299,30]
[418976756,1774703402758,-173.40719733,0.000453,120]
[418976757,1774703402789,-150.0,0.00045303,30]
[418976758,1774703402819,-223.02634997,0.00045319,30]
[418976759,1774703402851,-150.0,0.00045352,30]
[418976760,1774703402884,-191.69,0.00045355,120]
[418976761,1774703402916,-150.0,0.0004536,30]
[418976762,1774703402948,-150.0,0.0004536,30]
[418976763,1774703402979,-150.0,0.00045366,30]
[418976764,1774703403011,-223.02634997,0.00045366,30]
[418976765,1774703403044,-150.0,0.0004538,30]
[418976766,1774703403076,-150.0,0.00045388,30]
[418976767,1774703403107,-204.54103291,0.000454,120]
[418976768,1774703403137,-963934.43617845,0.000454,120]
[418976775,1774703408218,8002.77,9.5e-05,3]
[418976776,1774703408243,10000.01,9.5e-05,3]
[418976777,1774703408267,10000.01,9.5e-05,3]
[418976778,1774703408290,10000.01,9.5e-05,3]
[418976779,1774703408315,10000.01,9.5e-05,3]
[418976780,1774703408338,526.62615025,9.5e-05,3]
[418976781,1774703417415,-350.0,0.00034835,30]
[418976782,1774703417450,-350.0,0.00034835,30]
[418976783,1774703417487,-334.0,0.00034835,30]
[418976784,1774703417522,-57726.2753449,0.0003488,120]
[418976785,1774703417555,-10227.80993063,0.000349,120]
[418976786,1774703417597,-350.0,0.00036884,120]
[418976787,1774703417631,-350.0,0.00036884,120]
[418976788,1774703417668,-334.0,0.00036884,120]
[418976789,1774703417706,-60271.95783674,0.000381,33]
[418976790,1774703417743,-350.0,0.00038944,30]
[418976791,1774703417778,-350.0,0.00038944,30]
[418976792,1774703417813,-334.0,0.00038944,30]
[418976793,1774703417849,-13736.30077552,0.0004,120]
[418976794,1774703417884,-8211.14952219,0.0004,120]
[418976795,1774703418042,-25275.50942167,0.0004,120]
[418976796,1774703418078,-866.07494407,0.0004,120]
[418976797,1774703418116,-350.0,0.00040993,120]
[418976798,1774703418152,-350.0,0.00040993,120]
[418976799,1774703418188,-334.0,0.00040993,120]
[418976800,1774703418224,-892.56,0.00041109,120]
[418976801,1774703418262,-892.56,0.00041383,120]
[418976802,1774703418299,-892.58,0.00041657,120]
[418976803,1774703418335,-66188.025658,0.00042,120]
[418976804,1774703418368,-3000.0,0.00042,120]
[418976805,1774703418403,-2500.0,0.00042,120]
[418976806,1774703418472,-5054.14578442,0.000425,120]
[418976807,1774703418507,-3060.0,0.000425,120]
[418976808,1774703418542,-2550.0,0.000425,120]
[418976809,1774703418578,-470.06,0.00043,120]
[418976810,1774703418612,-1826.76,0.00043,120]
[418976811,1774703418647,-5744.44,0.00043,120]
[418976812,1774703418683,-3121.2,0.00043,120]
[418976813,1774703418718,-2601.0,0.00043,120]
[418976814,1774703418754,-350.0,0.00043054,30]
[418976815,1774703418789,-350.0,0.00043054,30]
[418976816,1774703418825,-334.0,0.00043054,30]
[418976817,1774703418862,-3183.62,0.000435,120]
[418976818,1774703418896,-2653.02,0.000435,120]
[418976819,1774703418941,-10129.02629186,0.00044,120]
[418976820,1774703418981,-3247.29,0.00044,120]
[418976821,1774703419015,-2706.08,0.00044,120]
[418976822,1774703419049,-2760.2,0.000445,120]
[418976823,1774703419085,-3312.24,0.000445,120]
[418976824,1774703419122,-151.0,0.00044932,120]
[418976825,1774703419155,-151.0,0.00044932,120]
[418976826,1774703419190,-151.0,0.00044932,120]
[418976827,1774703419224,-151.0,0.00044932,120]
[418976828,1774703419257,-151.0,0.00044932,120]
[418976829,1774703419291,-151.0,0.00044932,120]
[418976830,1774703419327,-151.0,0.00044932,120]
[418976831,1774703419365,-151.0,0.00044932,120]
[418976832,1774703419402,-151.0,0.00044932,120]
[418976833,1774703419438,-151.0,0.00044932,120]
[418976834,1774703419475,-220.988118,0.00044932,120]
[418976835,1774703419511,-10256.23243609,0.00045,120]
[418976836,1774703419546,-14267.64104399,0.00045,120]
[418976837,1774703419580,-2815.4,0.00045,120]
[418976838,1774703419615,-3378.48,0.00045,120]
[418976839,1774703419651,-350.0,0.00045103,120]
[418976840,1774703419687,-350.0,0.00045103,120]
[418976841,1774703419722,-334.0,0.00045103,120]
[418976842,1774703419756,-870.0,0.000454,60]
[418976843,1774703419792,-510.0,0.000454,60]
[418976844,1774703419826,-1036065.56382155,0.000454,120]
[418976845,1774703419862,-150.0,0.00045404,30]
[418976846,1774703419897,-3946.39,0.00045411,30]
[418976847,1774703419931,-3946.39,0.00045411,30]
[418976848,1774703419968,-223.02634997,0.00045414,30]
[418976849,1774703420004,-150.0,0.00045424,30]
[418976850,1774703420041,-150.0,0.00045424,30]
[418976851,1774703420075,-1000.0,0.00045437,120]
[418976852,1774703420109,-600.0,0.00045437,120]
[418976853,1774703420144,-379.49,0.00045441,90]
[418976854,1774703420181,-350.78422328,0.0004545,90]
[418976855,1774703420214,-2315.82132659,0.0004545,120]
[418976856,1774703420248,-150.0,0.00045452,30]
[418976857,1774703420285,-191.69,0.00045455,120]
[418976858,1774703420319,-150.0,0.00045457,30]
[418976859,1774703420354,-223.02634997,0.00045461,30]
[418976860,1774703420388,-150.0,0.00045488,30]
[418976861,1774703420422,-150.0,0.00045488,30]
[418976862,1774703420455,-1152212.1999922,0.000455,120]
[418976863,1774703420488,-441.26342492,0.000455,120]
[418976864,1774703420636,-335.48,0.000455,120]
[418976865,1774703420672,-3482.22,0.000455,120]
[418976866,1774703420710,-7100.94,0.000455,120]
[418976867,1774703420745,-285.05154163,0.000455,30]
[418976868,1774703420778,-2039.82,0.000455,30]
[418976869,1774703420813,-3446.05,0.000455,120]
[418976870,1774703420847,-2871.71,0.000455,120]
[418976871,1774703420881,-150.0,0.00045509,30]
[418976872,1774703420917,-223.02634997,0.00045509,30]
[418976873,1774703420950,-150.0,0.00045509,30]
[418976874,1774703420983,-150.0,0.00045509,30]
[418976875,1774703421017,-150.0,0.00045509,30]
[418976876,1774703421052,-150.0,0.00045534,30]
[418976877,1774703421086,-150.0,0.00045537,30]
[418976878,1774703421121,-150.0,0.00045551,30]
[418976879,1774703421156,-150.0,0.00045551,30]
[418976880,1774703421192,-191.69,0.00045555,120]
[418976881,1774703421225,-223.02634997,0.00045556,30]
[418976882,1774703421261,-1095.3,0.00045577,120]
[418976883,1774703421297,-1826.76,0.0004558,120]
[418976884,1774703421331,-470.06,0.0004558,120]
[418976885,1774703421366,-5744.44,0.0004558,120]
[418976886,1774703421400,-155.0,0.000456,120]
[418976887,1774703421437,-223.02634997,0.00045604,30]
[418976888,1774703421474,-150.0,0.00045612,30]
[418976889,1774703421511,-150.0,0.00045613,30]
[418976890,1774703421547,-150.0,0.00045615,30]
[418976891,1774703421582,-150.0,0.00045615,30]
[418976892,1774703421617,-150.0,0.00045623,30]